Workbook

Sheet Alaska
A1: FACTOR NO. 1 - HIP ELIGIBILITY/SELECTION CRITERIA @ 150%
A2: INCOME GUIDELINE POINT SCHEDULE FOR ALASKA
A3: FAMILY SIZE | B3: 0% to 25% of PG 25 POINTS | E3: 26% to 50% of PG 20 POINTS | H3: 51% to 75% of PG 15 POINTS | K3: 76% to 100 of PG 10 POINTS | N3: 101% to 125% of PG 5 POINTS | Q3: 126% to 150% of PG 0 POINTS | T3: OVER 150% of FPIG INELIGIBLE
A5: 1 | B5: 0 | C5: TO | D5: =D18 -> 3900 | E5: =D5+1 -> 3901 | F5: TO | G5: =G18 -> 7800 | H5: =G5+1 -> 7801 | I5: TO | J5: =J18 -> 11700 | K5: =J5+1 -> 11701 | L5: TO | M5: =M18 -> 15600 | N5: =M5+1 -> 15601 | O5: TO | P5: =P18 -> 19500 | Q5: =P5+1 -> 19501 | R5: TO | S5: =S18 -> 23400 | T5: =S5+1 -> 23401 | U5: & HIGHER
A6: 2 | B6: 0 | C6: TO | D6: =D5+D$17 -> 5282.5 | E6: 5283.5 | F6: TO | G6: =G5+G$17 -> 10565 | H6: 10566 | I6: TO | J6: =J5+J$17 -> 15847.5 | K6: 15848.5 | L6: TO | M6: =M5+M$17 -> 21130 | N6: 21131 | O6: TO | P6: =P5+P$17 -> 26412.5 | Q6: 26413.5 | R6: TO | S6: =S5+S$17 -> 31695 | T6: 31696 | U6: & HIGHER
A7: 3 | B7: 0 | C7: TO | D7: 6665 | E7: 6666 | F7: TO | G7: 13330 | H7: 13331 | I7: TO | J7: 19995 | K7: 19996 | L7: TO | M7: 26660 | N7: 26661 | O7: TO | P7: 33325 | Q7: 33326 | R7: TO | S7: 39990 | T7: 39991 | U7: & HIGHER
A8: 4 | B8: 0 | C8: TO | D8: 8047.5 | E8: 8048.5 | F8: TO | G8: 16095 | H8: 16096 | I8: TO | J8: 24142.5 | K8: 24143.5 | L8: TO | M8: 32190 | N8: 32191 | O8: TO | P8: 40237.5 | Q8: 40238.5 | R8: TO | S8: 48285 | T8: 48286 | U8: & HIGHER
A9: 5 | B9: 0 | C9: TO | D9: 9430 | E9: 9431 | F9: TO | G9: 18860 | H9: 18861 | I9: TO | J9: 28290 | K9: 28291 | L9: TO | M9: 37720 | N9: 37721 | O9: TO | P9: 47150 | Q9: 47151 | R9: TO | S9: 56580 | T9: 56581 | U9: & HIGHER
A10: 6 | B10: 0 | C10: TO | D10: 10812.5 | E10: 10813.5 | F10: TO | G10: 21625 | H10: 21626 | I10: TO | J10: 32437.5 | K10: 32438.5 | L10: TO | M10: 43250 | N10: 43251 | O10: TO | P10: 54062.5 | Q10: 54063.5 | R10: TO | S10: 64875 | T10: 64876 | U10: & HIGHER
A11: 7 | B11: 0 | C11: TO | D11: 12195 | E11: 12196 | F11: TO | G11: 24390 | H11: 24391 | I11: TO | J11: 36585 | K11: 36586 | L11: TO | M11: 48780 | N11: 48781 | O11: TO | P11: 60975 | Q11: 60976 | R11: TO | S11: 73170 | T11: 73171 | U11: & HIGHER
A12: 8 | B12: 0 | C12: TO | D12: 13577.5 | E12: 13578.5 | F12: TO | G12: 27155 | H12: 27156 | I12: TO | J12: 40732.5 | K12: 40733.5 | L12: TO | M12: 54310 | N12: 54311 | O12: TO | P12: 67887.5 | Q12: 67888.5 | R12: TO | S12: 81465 | T12: 81466 | U12: & HIGHER
A13: 9 | B13: 0 | C13: TO | D13: 14960 | E13: 14961 | F13: TO | G13: 29920 | H13: 29921 | I13: TO | J13: 44880 | K13: 44881 | L13: TO | M13: 59840 | N13: 59841 | O13: TO | P13: 74800 | Q13: 74801 | R13: TO | S13: 89760 | T13: 89761 | U13: & HIGHER
A14: 10 | B14: 0 | C14: TO | D14: 16342.5 | E14: 16343.5 | F14: TO | G14: 32685 | H14: 32686 | I14: TO | J14: 49027.5 | K14: 49028.5 | L14: TO | M14: 65370 | N14: 65371 | O14: TO | P14: 81712.5 | Q14: 81713.5 | R14: TO | S14: 98055 | T14: 98056 | U14: & HIGHER
A15: 11 | B15: 0 | C15: TO | D15: 17725 | E15: 17726 | F15: TO | G15: 35450 | H15: 35451 | I15: TO | J15: 53175 | K15: 53176 | L15: TO | M15: 70900 | N15: 70901 | O15: TO | P15: 88625 | Q15: 88626 | R15: TO | S15: 106350 | T15: 106351 | U15: & HIGHER
A16: 12 | B16: 0 | C16: TO | D16: 19107.5 | E16: 19108.5 | F16: TO | G16: 38215 | H16: 38216 | I16: TO | J16: 57322.5 | K16: 57323.5 | L16: TO | M16: 76430 | N16: 76431 | O16: TO | P16: 95537.5 | Q16: 95538.5 | R16: TO | S16: 114645 | T16: 114646 | U16: & HIGHER
A17: EACH PERSON OVER 12 ADD | D17: =D19 -> 1382.5 | G17: =G19 -> 2765 | J17: =J19 -> 4147.5 | M17: =M19 -> 5530 | P17: =P19 -> 6912.5 | S17: =S19 -> 8295 | T17: 8296 | U17: & HIGHER
B18: 25%= | D18: =$M$18*0.25 -> 3900 | E18: 50%= | G18: =$M$18*0.5 -> 7800 | H18: '75%= | J18: =$M$18*0.75 -> 11700 | K18: 100%= | M18: 15600 | N18: 125%= | P18: =$M$18*1.25 -> 19500 | Q18: 150% = | S18: =$M18*1.5 -> 23400 | U18: =R18*1.25 -> 0
B19: @ Add'l: | D19: =M19*0.25 -> 1382.5 | E19: @ Add'l: | G19: =M19*0.5 -> 2765 | H19: @ Add'l: | J19: =M19*0.75 -> 4147.5 | K19: @ Add'l: | M19: 5530 | N19: @ Add'l: | P19: =$M19*1.25 -> 6912.5 | Q19: @ Add'l: | S19: =M19*1.5 -> 8295 | U19: =R19*1.25 -> 0
A20: PG = | B20: HHS Poverty Guidelines
